Cogmind - Beta 14 @@@ ROGUE MODE // 2024.08.20 @ 18:17:29 Player: N.W.L Result: Destroyed by YI-UF0 with YI-UF0's Doublenader Performance ------------- Evolutions (0) 0 Regions Visited (4) 800 Robots Destroyed (62) 310 Value Destroyed (897) 897 Prototype IDs (37) 740 Alien Tech Used (0) 0 Bonus (300) 300 TOTAL SCORE: 3047 Bonus ------- Aligned with FarCom 300 Cogmind --------- Core Integrity 0/250 Matter 246/300 Energy 242/250 System Corruption 0% Temperature Cool (18) Movement Rolling (155) Ox5 Location -9/Mines Parts ------- > --- POWER (1) -------- Ion Engine > --- PROPULSION (2) --- Wheel > --- UTILITY (2) ------ High-capacity Storage Unit > --- WEAPON (2) ------- Improved Light Cannon Improved Light Cannon > --- INVENTORY (20) --- Fission Core Guided Plasma Cannon Light Cannon AWS/Autocannon Mini Grenade Launcher Mini Grenade Launcher Datajack Hammer Peak State ------------ > --- POWER ------------ Ion Engine > --- PROPULSION ------- Light Treads Wheel > --- UTILITY ---------- High-capacity Storage Unit Tractor Beam > --- WEAPON ----------- Light Cannon Improved Light Cannon > --- INVENTORY -------- Fission Core Guided Plasma Cannon Improved Light Cannon AWS/Autocannon Mini Grenade Launcher Mini Grenade Launcher Datajack Hammer [Rating: 13] Favorites ----------- Power Ion Engine Engine Ion Engine Propulsion Light Treads Treads Light Treads Wheel Wheel Utility Seismic Detector Device Seismic Detector Storage Medium Storage Unit Weapon Light Cannon Energy Gun Small Laser Energy Cannon Beam Cannon Ballistic Cannon Light Cannon Launcher Mini Grenade Launcher Impact Weapon Hammer Special Melee Weapon Datajack Build | -11 -10 -10 -10 -9 ------- Run | Yrd Mat Min Exi Min Slots Evolved . | . . . . . Power . | . . . . . Propulsion . | . . . . . Utility . | . . . . . Weapon . | . . . . . Parts Attached 43 | 9 14 11 3 6 Power 2 | 1 1 . . . Engine 2 | 1 1 . . . Core . | . . . . . Reactor . | . . . . . Propulsion 5 | 3 . 2 . . Treads 3 | 2 . 1 . . Leg . | . . . . . Wheel 2 | 1 . 1 . . Hover . | . . . . . Flight . | . . . . . Utility 5 | 2 1 1 1 . Device 2 | 1 . 1 . . Storage 3 | 1 1 . 1 . Processor . | . . . . . Hackware . | . . . . . Protection . | . . . . . Artifact . | . . . . . Weapon 31 | 3 12 8 2 6 Energy Gun 4 | 3 1 . . . Energy Cannon 2 | . 2 . . . Ballistic Gun . | . . . . . Ballistic Cannon 14 | . 5 5 1 3 Launcher 6 | . 2 2 . 2 Special Weapon . | . . . . . Impact Weapon 2 | . . 1 . 1 Slashing Weapon . | . . . . . Piercing Weapon . | . . . . . Special Melee Weapon 3 | . 2 . 1 . Unidentified Prototypes . | . . . . . Parts Lost 7 | . 1 4 . 2 Power . | . . . . . Propulsion 3 | . . 2 . 1 Utility 2 | . . 1 . 1 Weapon 2 | . 1 1 . . Highest Loss Streak 2 | . 1 2 . 2 To Critical Strikes . | . . . . . Average Slot Usage (%) 94 | . 99 94 100 71 Engine 14 | . 14 14 14 14 Treads 21 | . 28 21 14 . Wheel 4 | . . 5 14 14 Device 11 | . 14 9 14 . Storage 14 | . 14 14 14 14 Ballistic Cannon 23 | . 24 24 15 20 Launcher 1 | . . 1 . 7 Special Melee Weapon 2 | . 1 . 12 . Peak Build Rating 13 | 7 10 10 13 13 Average Rating 8 | 6 8 8 9 11 On Entrance 7 | . 7 9 8 13 Naked Turns . | . . . . . Heaviest Build 53 | 13 24 24 53 52 Greatest Support 40 | 40 40 40 10 10 Greatest Overweight (x) 5 | . . 2 5 5 Average Overweight (x) 1 | . . 1 1 4 Largest Inventory Capacity 20 | 8 10 10 20 20 Average Capacity 10 | 7 9 10 11 20 Most Carried 10 | 5 10 10 10 10 Average Carried 7 | 3 9 9 9 10 Final Capacity 20 | 8 10 10 20 20 Final Carried 10 | 4 10 9 10 10 Class Distribution -------------------- 92% | Mutant 7% | Scavenger-Mutant Dominant Class ---------------- Mutant | -10/Materials Mutant | -10/Mines Scavenger-Mutant | -10/Exiles Mutant | -9/Mines Resources | -11 -10 -10 -10 -9 ----------- Run | Yrd Mat Min Exi Min Matter Collected 1405 | 290 511 391 . 213 Remotely 57 | . . 57 . . Salvage Created 1356 | 318 461 358 . 219 Parts 104 | 29 47 15 . 13 Haulers Intercepted 2 | . 2 . . . Recyclers Shooed 2 | . . . . 2 Parts Field Recycled . | . . . . . Retrieved Matter . | . . . . . Parts Self-Destructed . | . . . . . Prevented . | . . . . . Kills | -11 -10 -10 -10 -9 ------- Run | Yrd Mat Min Exi Min Combat Hostiles Destroyed 27 | . 10 9 . 8 Cannons 13 | . 6 4 . 3 AOE 14 | . 4 5 . 5 Classes Destroyed 10 | 3 6 1 . . Worker 9 | 4 4 1 . . Builder 5 | . 4 1 . . Tunneler 9 | 9 . . . . Hauler 2 | . 2 . . . Recycler 7 | 1 1 3 . 2 Operator 3 | . 3 . . . Watcher 3 | . 3 . . . Swarmer 10 | . 3 3 . 4 Grunt 14 | . 7 4 . 3 Assembled 3 | . . 2 . 1 Best Kill Streak 7 | 5 5 7 . 4 Combat Bots Only 4 | . 3 3 . 4 Max Kills in Single Turn 4 | 1 2 2 . 4 Gunslinging . | . . . . . Exploded 4 | . 2 2 . 4 Melee . | . . . . . Uniques/NPCs Destroyed . | . . . . . Combat | -11 -10 -10 -10 -9 -------- Run | Yrd Mat Min Exi Min Hostile Shots Fired 99 | . 34 45 . 20 Missed 29 | . 13 12 . 4 Damage Taken 1336 | 21 261 756 . 298 Core 252 | . 59 103 . 90 Absorbed by Shields . | . . . . . Core Remaining (%) 100 | 100 . . . . Volleys Fired 147 | 41 51 34 . 21 Largest 2 | 2 2 2 . 2 Hottest 100 | 80 100 78 . 78 Shots Fired 274 | 82 96 57 . 39 Gun 84 | 82 2 . . . Cannon 170 | . 88 46 . 36 Launcher 20 | . 6 11 . 3 Special . | . . . . . Kinetic 166 | . 84 46 . 36 Thermal 61 | 57 4 . . . Explosive 20 | . 6 11 . 3 Electromagnetic 27 | 25 2 . . . Robot Hit Streak 10 | 10 5 9 . 7 Robot Miss Streak 4 | 4 3 2 . 3 Penetration Max . | . . . . . Secondary Targets . | . . . . . Shots Hit Robots 127 | 28 42 29 6 22 Core Hits 72 | 14 30 18 . 10 Critical Kills . | . . . . . Critical Parts Destroyed . | . . . . . Critical Strikes 5 | 1 2 1 . 1 Blast 4 | . 2 1 . 1 Corrupt 1 | 1 . . . . Melee Attacks 7 | . . 1 6 . Impact 1 | . . 1 . . Slashing . | . . . . . Piercing . | . . . . . Sneak Attacks 6 | . . . 6 . Combat Hostiles . | . . . . . Follow-up Attacks . | . . . . . Damage Inflicted 3541 | 416 1378 995 . 752 Guns 340 | 325 15 . . . Cannons 1918 | . 960 532 . 426 Explosions 1272 | 91 392 463 . 326 Melee . | . . . . . Ramming 11 | . 11 . . . Kinetic 1883 | . 925 532 . 426 Thermal 452 | 266 35 . . 151 Explosive 1030 | . 392 463 . 175 Electromagnetic 165 | 150 15 . . . Impact . | . . . . . Slashing . | . . . . . Piercing . | . . . . . Highest Corruption . | . . . . . Average Corruption . | . . . . . Corruption Purged . | . . . . . Corruption Blocked . | . . . . . Overload Shots . | . . . . . Overflow Damage 95 | . 19 37 . 39 Projectiles 51 | . 4 12 . 35 Explosions 44 | . 15 25 . 4 Melee . | . . . . . Knockbacks 20 | . 7 9 . 4 Impact . | . . . . . Kinetic 20 | . 7 9 . 4 Secondary . | . . . . . Self-Inflicted Damage 122 | 21 . 45 . 56 Shots 6 | 1 . 3 . 2 Rammed 1 | . 1 . . . Targets Rammed 1 | . 1 . . . Kicked . | . . . . . Crushed . | . . . . . Highest Temperature 231 | 198 231 171 . 84 Average Temperature 48 | 65 43 41 . 30 Received Heat Transfer 317 | . 150 107 . 60 Effects 1 | . 1 . . . Energy Bleed 1 | . 1 . . . Siege Activations . | . . . . . Robots Corrupted . | . . . . . Combat Hostiles . | . . . . . Parts Fried . | . . . . . Impact Corruptions . | . . . . . Robots Melted . | . . . . . Combat Hostiles . | . . . . . Parts Melted . | . . . . . Heat Transferred 724 | 500 74 . . 150 Parts Sabotaged . | . . . . . Parts Stolen . | . . . . . Parts Stripped . | . . . . . Power Chain Reactions 2 | 2 . . . . Alert | -11 -10 -10 -10 -9 ------- Run | Yrd Mat Min Exi Min Peak Influence 274 | 60 239 274 . 194 Initial 53 | . . 53 . . Average 88 | 18 97 127 . 154 Maximum Alert Level 1 | . 1 1 . . Low Security (%) 94 | 100 93 82 . 100 Level 1 5 | . 6 17 . . Level 2 . | . . . . . Level 3 . | . . . . . Level 4 . | . . . . . Level 5 . | . . . . . High Security . | . . . . . Max Security . | . . . . . Squads Dispatched 3 | . 3 . . . Investigation 2 | . 2 . . . Extermination . | . . . . . Reinforcement 1 | . 1 . . . Assault . | . . . . . Garrison . | . . . . . Intercept . | . . . . . Searches Triggered . | . . . . . Construction Impeded . | . . . . . Haulers Reinforced . | . . . . . Active Scanning Responses . | . . . . . Cargo Convoy Interrupts . | . . . . . Stealth | -11 -10 -10 -10 -9 --------- Run | Yrd Mat Min Exi Min Distress Signals 3 | . 1 . . 2 Communications Jammed . | . . . . . Distress Signals . | . . . . . Times Spotted 42 | . 17 12 . 13 Peak Tracking Total 4 | . 4 3 . 4 Tactical Retreats 1 | . . 1 . . Traps | -11 -10 -10 -10 -9 ------- Run | Yrd Mat Min Exi Min Traps Triggered . | . . . . . Indirectly . | . . . . . Trap Hack Attempts 37 | . 37 . . . Triggered . | . . . . . Disarmed 3 | . 3 . . . Reprogrammed 2 | . 2 . . . Reused . | . . . . . Traps Extracted . | . . . . . Installed . | . . . . . Triggered . | . . . . . Machines | -11 -10 -10 -10 -9 ---------- Run | Yrd Mat Min Exi Min Machines Disabled 3 | . 2 . . 1 Max in Single Turn 1 | . 1 . . 1 Machines Repaired . | . . . . . Machines Dismantled . | . . . . . Machines Sabotaged . | . . . . . Overloaded Fab Kills . | . . . . . Hacking | -11 -10 -10 -10 -9 --------- Run | Yrd Mat Min Exi Min Machines Accessed 11 | . 8 . 2 1 Terminals 7 | . 6 . . 1 Fabricators . | . . . . . Repair Stations . | . . . . . Recycling Units 2 | . 2 . . . Scanalyzers . | . . . . . Garrison Access . | . . . . . Total Hacks 25 | . 21 . 2 2 Successful 15 | . 12 . 2 1 Failed 10 | . 9 . . 1 Catastrophic 2 | . 2 . . . Database Lockouts . | . . . . . Manual 19 | . 15 . 1 3 Terminals 18 | . 16 . . 2 Fabricators . | . . . . . Repair Stations . | . . . . . Recycling Units 5 | . 5 . . . Scanalyzers . | . . . . . Garrison Access . | . . . . . Terminal Hacks 12 | . 9 . 2 1 Record 1 | . . . 1 . Part Schematic 2 | . 2 . . . Robot Analysis 3 | . 2 . . 1 Level Access Points 1 | . 1 . . . Branch Access Points 1 | . 1 . . . Patrol Status 2 | . 2 . . . Hauler Manifests 1 | . 1 . . . Derelict Proto ID Bank 1 | . . . 1 . Fabricator Hacks . | . . . . . Repair Station Hacks . | . . . . . Recycling Unit Hacks . | . . . . . Scanalyzer . | . . . . . Garrison Access Hacks . | . . . . . Unauthorized Hacks 3 | . 3 . . . Terminals 1 | . 1 . . . Botnet 1 | . 1 . . . Fabricators . | . . . . . Repair Stations . | . . . . . Recycling Units 2 | . 2 . . . Tunnel 2 | . 2 . . . Scanalyzers . | . . . . . Garrison Access . | . . . . . Data Cores Recovered 2 | . 2 . . . Used . | . . . . . Hacking Detections 8 | . 7 . . 1 Full Trace Events . | . . . . . Feedback Events . | . . . . . Feedback Blocked . | . . . . . Robot Schematics Acquired . | . . . . . Robots Built . | . . . . . Authchips . | . . . . . Time . | . . . . . Total Robot Build Rating . | . . . . . Part Schematics Acquired 2 | . 2 . . . Parts Built . | . . . . . Authchips . | . . . . . Time . | . . . . . Total Part Build Rating . | . . . . . Parts Repaired . | . . . . . Time . | . . . . . Parts Recycled . | . . . . . Recycled Matter . | . . . . . Retrieved Matter . | . . . . . Retrieved Components . | . . . . . Parts Scanalyzed . | . . . . . Part Schematics Acquired . | . . . . . Parts Damaged . | . . . . . Bothacking | -11 -10 -10 -10 -9 ------------ Run | Yrd Mat Min Exi Min Used RIF Installer . | . . . . . Robots Hacked 4 | . . . 4 . Non-combat 3 | . . . 3 . Combat 1 | . . . 1 . Robot Hacks Applied 6 | . . . 6 . parse_system 6 | . . . 6 . Relay Couplers Released . | . . . . . Fabnet Peak Effective % . | . . . . . Robots Rewired . | . . . . . Allies Hacked . | . . . . . Hacks Repelled . | . . . . . Allies | -11 -10 -10 -10 -9 -------- Run | Yrd Mat Min Exi Min Total Allies . | . . . . . Largest Group . | . . . . . Highest-Rated Group . | . . . . . Highest-Rated Ally . | . . . . . Total Orders . | . . . . . Ally Attacks . | . . . . . Total Damage . | . . . . . Kills . | . . . . . Allies Corrupted . | . . . . . Allies Melted . | . . . . . Intel | -11 -10 -10 -10 -9 ------- Run | Yrd Mat Min Exi Min Robot Analysis Total 3 | . 2 . . 1 Derelict Logs Recovered 1 | . . . . 1 Drone Launches . | . . . . . Drone Recoveries . | . . . . . Exploration | -11 -10 -10 -10 -9 ------------- Run | Yrd Mat Min Exi Min Turns Passed 3669 | 841 1564 494 367 403 Spaces Moved 1670 | 290 610 208 348 214 Core 4 | 4 . . . . Treads 962 | 285 610 67 . . Legs . | . . . . . Wheels 704 | 1 . 141 348 214 Hover . | . . . . . Flight . | . . . . . Fastest Speed 50 | 50 160 95 95 140 Average Speed 141 | 158 160 127 100 145 Slowest Speed 240 | 160 160 240 155 155 Overloaded Moves . | . . . . . Propulsion Burnouts . | . . . . . Robots Hopped . | . . . . . Cave-ins Triggered . | . . . . . Exploration Rate (%) 50 | 12 97 45 67 33 Regions Visited 4 Branch Regions 3 Pre-discovered Areas 3 | . 2 . 1 . Known Exits Taken 1 | . 1 . . . Unknown Exits Taken 3 | 1 . 1 1 . Scrap Searched 2 | . . 1 . 1 Spaces Dug 14 | . . 14 . . Terrain Destroyed 163 | 6 34 88 . 35 Melee 1 | . . 1 . . Projectile 7 | . 2 3 . 2 AOE 155 | 6 32 84 . 33 Terrain Rammed . | . . . . . Walls Destroyed . | . . . . . Machines Disabled . | . . . . . Actions | -11 -10 -10 -10 -9 --------- Run | Yrd Mat Min Exi Min Total 2698 | 587 1106 374 365 266 Wait 748 | 242 360 120 1 25 Move 1666 | 289 609 207 347 214 Hop . | . . . . . Pick Up 26 | 5 17 1 3 . Fast Attach 12 | 7 3 2 . . Attach 4 | 1 1 2 . . Detach 1 | . 1 . . . Swap 27 | 1 10 7 3 6 Drop 22 | 1 16 . 5 . Fire 147 | 41 51 34 . 21 Melee 7 | . . 1 6 . Ram . | . . . . . Kick . | . . . . . Crush 1 | . 1 . . . Escape Stasis . | . . . . . Rewire . | . . . . . Trap 37 | . 37 . . . Miscellaneous . | . . . . . Route ------- -11/Scrapyard -10/Materials (discovered 5 exits: *Mat x3 / *Min x2) -10/Mines (discovered 3 exits: *Mat x2 / *Exi) -10/Exiles -9/Mines History --------- Turn | Location | Event 59 | -11/Scrapyard | Discovered new exit (range 16) 842 | -11/Scrapyard | Entered Materials 843 | -10/Materials | Build established: Mutant 987 | -10/Materials | Identified exit to Materials 1624 | -10/Materials | Discovered new exit (range 5) 1638 | -10/Materials | Discovered new exit (range 10) 1764 | -10/Materials | Identified exit to Mines 2406 | -10/Materials | Entered Mines 2407 | -10/Mines | Assembled infested the area 2713 | -10/Mines | Discovered exit to Materials (range 10) 2715 | -10/Mines | Core integrity fell below 50% 2794 | -10/Mines | Discovered exit to Materials (range 13) 2803 | -10/Mines | Deemed a non-threat by the Exiles lab entrance 2896 | -10/Mines | Discovered new exit (range 5) 2900 | -10/Mines | Entered Exiles 2931 | -10/Exiles | Met 8R-AWN 2949 | -10/Exiles | Met EX-HEX 2990 | -10/Exiles | Met EX-DEC 3026 | -10/Exiles | Learned location of Zion (-7) 3042 | -10/Exiles | Met EX-BIN 3057 | -10/Exiles | Aligned with FarCom system 3058 | -10/Exiles | Given EX-Vault access code 3080 | -10/Exiles | Opened EX-Vault 3087 | -10/Exiles | Found AWS/Autocannon 3094 | -10/Exiles | Found Gui. Plasma Cannon 3114 | -10/Exiles | Warned to stay clear of 0b10 Research branches 3179 | -10/Exiles | Discovered new exit (range 14) 3267 | -10/Exiles | Stole two prototypes: Gui. Plasma Cannon, AWS/Autocannon 3267 | -10/Exiles | Entered Mines 3342 | -9/Mines | Excavation squad dispatched 3342 | -9/Mines | A large section of the Mines collapsed 3553 | -9/Mines | Learned location of 1 exit from Materials 3592 | -9/Mines | Excavation squad dispatched 3655 | -9/Mines | Core integrity fell below 20% 3670 | -9/Mines | Destroyed by YI-UF0 with YI-UF0's Doublenader Last Messages --------------- 03490_ Acquired 78 matter. 03492_ Acquired 14 matter. 03495_ Acquired 25 matter. 03498_ U-05 Engineer lays Concrete. 03503_ U-05 Engineer builds a Wall. 03512_ U-05 Engineer lays Concrete. 03546_ K-01 Serf collects debris. 03553_ Acquired derelict log, extracted data. Data stored: Materials exits (x1). 03592_ ALERT: Derelict activity in mines confirmed. Dispatching additional escorted excavation squad. 03604_ YI-UF0 mumbles something. 03628_ T-07 Excavator destroyed. 03653_ Destroyed Seismic Detector. 03653_ T-07 Excavator sends out distress signal. 03662_ YI-UF0: "Whaaaaaaaa!" 03664_ G-34 Mercenary destroyed. 03664_ YI-UF0: "BAROOM!" 03666_ T-07 Excavator destroyed. 03667_ Destroyed Shock Absorption System. Map ----- +----------------------------------------------------+ | ???????## "##!#??????## #?????????? | | ????????#"% "##%#???????#### % #????????? | | ???###??#"[= ###!#??????????## # #???????? | | ??? #??#" ### #??????????## ## #???????? | | ???# #??## #???????#### ### #???????? | | ???# #???# #####??????#### #?# #??????? | | ???# #???# #?????????## #?? ?????? | | ???# #???########????????## #???? ???? | | ???# #??????????????????## [= #?????### #??? | | ???# #?????????????????## % #????????? #??? | | ???# #######??????????## !%= #?????????????? | | ???# ####??????## [%=# = #?????????????? | | ???# ##????## %=%# = ##????????????? | | ???###### ###### **!### #????????????? | | ????????# ## | ##?## #????????????? | | ???????## !%###???#### #????????????? | | ??????## *#????????####????????????? | | ??????# ######???????????????????? | | ??????# #???????????????????? | | #?????# #### ##???????????????????? | | ##????# ###### % ##????????????????????? | | ##???# ####### ##?????????????????????? | | ##??# #??### g * ##?????????????????????? | | ##?# #??# %|=% #?????????????????????? | | ### #??# ! ?????????????????????? | | #??# @ #?????????????????????? | | #######??# #?????????????????????? | | ##????????# =% ##?????????????????????? | | ###?????? [% ##????????????????????????? | | ???????? * ??????????????????????????? | | ???????? =% ???????????????????????????? | | ???????# #### !%#???????????????????????????? | | ????????# #???# ???????????????????????????? | | ????????#?????#### ?g?????????????????????????? | | ????????????????? ???????????????????????????? | | ???????????????? ## #???????????????????????????? | | ??????????????? #??#????????????????????????????? | | ???????????????? ????????????????????????????????? | | ?????????????????????????????????????????????????? | | ?????????????????????????????????????????????????? | | ?????????????????????????????????????????????????? | | ?????????????????????????????????????????????????? | | ?????????????????????????????????????????????????? | | ?????????????????????????????????????????????????? | | ?????????????????????????????????????????????????? | | ?????????????????????????????????????????????????? | | ?????????????????????????????????????????????????? | | ?????????????????????????????????????????????????? | | ?????????????????????????????????????????????????? | | ?????????????????????????????????????????????????? | +----------------------------------------------------+ Best States ------------- Heat Dissipation 25 Energy Generation 10 Energy Capacity 250 Matter Stores 300 Matter Capacity 300 Sight Range 16 Terrain Scan Density 10 Evasion (%) 41 Recoil Reduction 2 Item Schematics ----------------- Huge Storage Unit | -10/Materials | Hacked Cargo Storage Unit | -10/Materials | Hacked Robot Schematics ------------------ None Fabricated ------------ Nothing Alien Tech Used ----------------- None Achievements -------------- None Challenges ------------ None Game ------ Seed TargetingCannonSaw Manual? 0 Play Time 00:21:33 Cumulative 251.1 hours Start 2024.08.20 @ 17:55:54 End 2024.08.20 @ 18:17:29 Sessions 1 Manual Loads 0 Difficulty Rogue Special Mode None Game No. 128 Rogue 128 Adventurer 0 Explorer 0 Win Type - Total 8 Types 4/1/3/0/0/0/0/0/0 Lore% 75 Gallery% 84 Achievement% 70 Wizard Run 0 Options --------- Layout 0 ASCII 0 Keyboard 0 Movement Mouse Keybinds 0 Fullscreen 2 Font 18/SmallcapsGlow Map View 76x50 Zoom Use 6% Tactical HUD 1 Map Filters NONE Filters NONE Steam 1 RUN: c50e0b52-2068-46c4-ab5c-a52829e21cc2